bitfinex/quotes_ETHUSD_20240721
["timestamp","ask_amount","ask_price","bid_price","bid_amount"]
[1721592615514,2.85992,3496.6,3495.9,2.4806]
[1721592616140,2.408,3496.6,3495.9,2.4806]
[1721592616342,2.86033,3496.1,3495.9,2.4806]
[1721592616572,2.408,3496.2,3494.8,2.4806]
[1721592616715,2.86048,3496.0,3494.8,2.4806]
[1721592616918,2.86053,3495.9,3494.8,2.4806]
[1721592617119,2.86053,3495.9,3495.0,2.4806]
[1721592618058,2.86058,3495.8,3495.0,2.4806]
[1721592618258,2.86068,3495.7,3495.0,2.4806]
[1721592618773,2.408,3495.4,3495.0,2.4806]
[1721592619054,2.86098,3495.3,3495.0,2.4806]
[1721592619642,2.408,3495.4,3495.0,2.4806]
[1721592619826,2.8611,3495.2,3495.0,2.4806]
[1721592620470,2.861,3495.3,3495.0,2.4806]
[1721592621464,2.408,3495.4,3495.0,2.4806]
[1721592622265,2.408,3495.8,3495.0,2.4806]
[1721592622470,3.0,3495.9,3495.2,2.4955]
[1721592624261,2.86058,3495.8,3495.2,2.4955]
[1721592624459,2.86065,3495.7,3495.2,2.4955]
[1721592625143,2.86074,3495.6,3495.2,2.4955]
[1721592625740,5.26857,3495.8,3495.2,2.4955]
[1721592626476,2.86066,3495.7,3495.2,2.4955]
[1721592628655,5.26857,3495.8,3495.2,2.4955]
[1721592628851,5.26895,3495.4,3495.2,2.4955]
[1721592629656,2.408,3495.4,3495.2,2.4955]
[1721592630036,2.86082,3495.5,3495.2,2.4955]
[1721592632879,2.86066,3495.7,3495.2,2.4955]
[1721592633066,2.86076,3495.6,3495.2,2.4955]
[1721592634275,5.56665457,3495.8,3495.2,2.4955]
[1721592634465,3.0,3495.7,3495.2,2.4955]
[1721592637114,6.77848292,3496.2,3495.3,2.86097]
[1721592637382,6.77848292,3496.2,3495.9,2.3804]
[1721592639582,2.86039,3496.1,3495.9,2.3804]
[1721592640059,2.86041,3496.0,3495.9,2.3804]
[1721592640261,2.86041,3496.0,3494.9,2.3914]
[1721592641403,2.86041,3496.0,3495.0,2.3914]
[1721592641908,12.04673292,3496.2,3495.0,2.3914]
[1721592641909,2.408,3495.8,3495.0,2.3914]
[1721592642048,0.2408,3495.7,3495.0,2.3914]
[1721592642408,2.86074,3495.6,3495.0,2.3914]
[1721592643251,0.2408,3495.7,3495.0,2.3914]
[1721592643465,3.2408,3495.7,3495.0,2.3914]
[1721592644195,6.10146,3495.7,3495.0,2.3914]
[1721592644689,2.408,3495.4,3495.0,2.3914]
[1721592649461,5.2689,3495.4,3495.0,2.3914]
[1721592650755,2.408,3495.4,3495.0,2.3914]
[1721592651595,5.86083,3495.5,3495.0,2.3914]
[1721592652794,3.0,3495.5,3495.0,2.3914]
[1721592653003,3.0,3495.6,3495.0,2.3914]
[1721592653199,0.35,3495.7,3495.0,2.3914]
[1721592653408,3.0,3495.8,3495.0,2.3914]
[1721592653772,5.86057,3495.8,3495.0,2.3914]
[1721592654096,6.21057,3495.8,3495.0,2.3914]
[1721592654657,0.35,3495.8,3495.0,2.3914]
[1721592654993,14.50590332,3496.5,3495.0,2.3914]
[1721592654994,12.41,3496.5,3495.9,2.3084]
[1721592655202,6.77848292,3496.7,3495.9,2.3084]
[1721592659206,9.63833292,3496.7,3495.9,2.3084]
[1721592661022,6.77848292,3496.7,3495.9,2.3084]
[1721592661175,3.0,3496.6,3495.9,2.3084]
[1721592662004,3.0,3496.6,3495.9,2.86047]
[1721592662198,3.0,3496.6,3496.0,2.3682]
[1721592662413,3.0,3496.6,3496.0,5.22861]
[1721592662619,6.77848292,3496.7,3496.2,2.3682]
[1721592663500,6.77848292,3496.7,3496.2,5.22844]
[1721592664118,6.77848292,3496.7,3496.2,2.86024]
[1721592664282,6.77848292,3496.7,3496.3,2.3682]
[1721592666281,9.18548292,3496.7,3496.3,2.3682]
[1721592666807,2.757,3496.7,3496.3,2.3682]
[1721592667897,2.757,3496.7,3494.7,3.0]
[1721592667898,2.86008,3496.4,3495.5,2.3682]
[1721592668092,2.407,3496.2,3495.5,2.3682]
[1721592669311,5.407,3496.6,3495.5,2.3682]
[1721592669624,5.407,3496.6,3495.6,2.3682]
[1721592669625,0.35,3496.5,3495.6,2.3682]
[1721592671492,3.21001,3496.5,3495.6,2.3682]
[1721592671728,3.0,3496.4,3495.6,2.3682]
[1721592672594,2.407,3496.2,3495.6,2.3682]
[1721592675821,3.0,3496.5,3495.6,2.3682]
[1721592676439,3.35,3496.5,3495.6,2.3682]
[1721592676835,3.35,3496.5,3495.7,2.3682]
[1721592677322,3.35,3496.5,3495.8,2.86056]
[1721592677523,3.35,3496.5,3495.7,2.3682]
[1721592677524,3.0,3496.5,3495.7,2.3682]
[1721592677757,3.0,3496.5,3495.8,2.3682]
[1721592679142,3.0,3496.5,3495.9,2.3185]
[1721592679843,6.77848292,3496.6,3496.0,2.86039]
[1721592680151,6.77848292,3496.6,3496.1,2.3661]
[1721592680871,6.77848292,3496.6,3496.1,2.86026]
[1721592681167,6.77848292,3496.6,3496.2,2.3661]
[1721592683351,12.20886013,3496.9,3496.3,2.3661]
[1721592683568,6.77848292,3497.2,3496.4,2.60271]
[1721592683933,6.77848292,3497.2,3496.5,2.3661]
[1721592684242,6.77848292,3497.2,3496.6,2.3661]
[1721592685229,3.0,3497.1,3496.6,2.3661]
[1721592686081,2.407,3497.0,3496.6,2.3661]
[1721592686441,5.26661,3497.0,3496.6,2.3661]
[1721592687442,2.85967,3496.9,3496.6,2.3661]
[1721592688339,2.85975,3496.8,3496.6,2.3661]
[1721592688594,2.407,3497.0,3496.6,2.3661]
[1721592688595,5.26661,3497.0,3496.6,2.3661]
[1721592689372,8.12626,3497.0,3496.6,2.3661]
[1721592689541,2.407,3497.0,3496.6,2.3661]
[1721592689881,2.8597,3496.9,3496.6,2.3661]
[1721592690638,2.407,3497.0,3496.6,2.3661]
[1721592692085,2.85968,3496.9,3496.6,2.3661]
[1721592692473,2.407,3497.0,3496.6,2.3661]
[1721592692646,5.26659,3497.0,3496.6,2.3661]
[1721592693669,2.85968,3496.9,3496.6,2.3661]
[1721592694188,2.407,3497.0,3496.6,2.3661]
[1721592694549,2.70609312,3497.0,3496.6,2.3661]
[1721592694750,2.85969,3496.9,3496.6,2.3661]
[1721592696281,2.85976,3496.8,3496.6,2.3661]
[1721592697550,2.70609312,3497.0,3496.6,2.3661]
[1721592697770,2.407,3497.0,3496.6,2.3661]
[1721592698488,5.26661,3497.0,3496.6,2.3661]
[1721592698675,2.85969,3496.9,3496.6,2.3661]
[1721592699207,2.85983,3496.7,3496.6,2.3661]
[1721592704794,2.85976,3496.8,3496.6,2.3661]
[1721592705001,2.85983,3496.7,3496.6,2.3661]
[1721592708346,3.86283,3496.7,3496.6,2.3661]
[1721592708635,1.003,3496.7,3496.6,2.3661]
[1721592708846,3.86283,3496.7,3496.6,2.3661]
[1721592709009,1.003,3496.7,3496.6,2.3661]
[1721592709204,3.86283,3496.7,3496.6,2.3661]
[1721592713344,2.86017,3496.3,3495.3,2.4811]
[1721592713545,1.003,3495.5,3495.4,2.4811]
[1721592716408,1.003,3495.5,3495.4,5.342]
[1721592717943,1.003,3495.7,3495.5,2.387]
[1721592718149,3.0,3496.4,3495.7,2.387]
[1721592718457,3.0,3496.4,3495.9,2.387]
[1721592718607,1.003,3496.0,3495.9,2.387]
[1721592720757,1.003,3496.2,3495.9,2.387]
[1721592720922,1.003,3496.0,3495.9,2.387]
[1721592721116,3.0,3496.4,3495.9,0.524757]
[1721592721329,6.77848292,3496.5,3496.0,2.86041]
[1721592721330,1.003,3496.3,3496.0,2.86041]
[1721592721549,1.003,3496.3,3496.1,2.387]
[1721592722348,1.003,3496.3,3496.1,5.24729]
[1721592722549,1.003,3496.3,3496.2,2.387]
[1721592725659,3.0,3496.7,3496.2,2.387]
[1721592725856,1.003,3496.3,3496.2,2.387]
[1721592726955,3.0,3496.7,3496.2,2.387]
[1721592727157,3.0,3496.7,3496.3,2.387]
[1721592727358,1.003,3496.4,3496.3,2.387]
[1721592733852,3.0,3497.0,3496.3,2.387]
[1721592734196,1.003,3496.8,3496.3,5.24716]
[1721592734347,1.003,3496.8,3496.5,2.3323]
[1721592735060,3.0,3497.3,3496.8,2.85974]
[1721592735273,1.003,3496.9,3496.8,5.19204]
[1721592736770,1.003,3496.9,3496.8,2.3323]
[1721592746539,1.003,3497.3,3496.8,2.3323]
[1721592746837,29.57620129,3498.0,3495.6,2.86071]
[1721592746838,1.003,3497.5,3497.3,5.32884]
[1721592747044,1.003,3497.5,3497.3,2.4695]
[1721592747330,1.003,3497.8,3497.5,2.4695]
[1721592747488,1.003,3497.8,3497.6,2.4695]
[1721592748015,0.0520447,3498.4,3497.6,6.147391]
[1721592748218,1.003,3497.9,3497.7,2.4695]
[1721592748387,1.003,3497.9,3497.8,2.85893]
[1721592748832,0.0520447,3498.4,3497.8,2.85893]
[1721592749131,1.003,3498.0,3497.8,2.85893]
[1721592750100,1.003,3498.0,3497.8,3.677688]
[1721592750312,0.0520447,3498.4,3497.9,2.3567]
[1721592750931,1.003,3498.2,3497.9,2.3567]
[1721592751445,0.0520447,3498.4,3497.9,2.3567]
[1721592751643,1.003,3498.3,3497.9,2.3567]
[1721592751942,1.003,3498.1,3497.9,2.3567]
[1721592754211,1.003,3498.3,3497.9,5.733843]
[1721592756141,0.0520447,3498.4,3498.1,2.3567]
[1721592756898,0.0520447,3498.4,3498.3,2.3567]
[1721592757530,0.0520447,3498.4,3498.3,5.21523]
[1721592757723,0.0520447,3498.4,3498.3,6.02834555]
[1721592758825,0.0520447,3498.4,3498.3,5.97004555]
[1721592759171,0.0520447,3498.4,3498.3,3.11151555]
[1721592760047,0.0520447,3498.4,3498.3,2.2984]
[1721592760956,0.0520447,3498.4,3497.8,2.2984]
[1721592761266,1.003,3497.9,3497.8,2.2984]
[1721592767889,1.003,3498.0,3497.8,2.2984]
[1721592768313,0.0520447,3498.4,3497.9,2.85885]
[1721592768314,1.003,3498.2,3497.9,2.85885]
[1721592769759,1.003,3498.2,3498.0,2.85877]
[1721592770316,1.003,3498.2,3498.1,2.85869]
[1721592770458,1.003,3498.2,3498.1,5.11169]
[1721592770822,1.003,3498.2,3498.1,5.622859]
[1721592771026,0.0520447,3498.4,3498.3,5.11153]
[1721592771166,0.0520447,3498.4,3498.3,7.97006]
[1721592772367,0.0520447,3498.4,3498.3,5.11153]
[1721592775763,0.0520447,3498.4,3498.3,7.97006]
[1721592776112,0.0520447,3498.4,3498.3,8.8181829]
[1721592787308,0.0520447,3498.4,3498.3,11.6767129]
[1721592787717,0.0520447,3498.4,3498.3,14.6917129]
[1721592787918,0.0520447,3498.4,3498.3,15.2417129]
[1721592789733,1e-08,3498.4,3498.3,15.2417129]
[1721592793554,1e-08,3498.4,3498.3,14.6917129]
[1721592795939,1e-08,3498.4,3498.3,15.2417129]
[1721592798448,1e-08,3498.4,3498.3,18.2417129]
[1721592804235,1e-08,3498.4,3498.3,21.1002429]
[1721592804436,6.77848292,3499.8,3499.5,5.12652]
[1721592804674,1.001,3500.3,3499.5,5.12652]
[1721592804876,1.001,3500.1,3499.5,5.12652]
[1721592805296,6.77848292,3500.4,3499.5,5.12652]
[1721592805443,1.001,3500.1,3499.5,5.12652]
[1721592805864,1.001,3499.9,3499.5,2.269]
[1721592806683,9.63529292,3500.4,3499.5,2.269]
[1721592806855,1.001,3499.8,3499.5,2.269]
[1721592808074,1.001,3499.8,3499.4,2.85761]
[1721592810267,9.63529292,3500.4,3499.4,2.85761]
[1721592810268,6.77848292,3500.4,3499.4,2.269]
[1721592810611,6.77848292,3500.4,3500.0,2.85713]
[1721592810759,6.77848292,3500.4,3500.0,0.512613]
[1721592810962,6.77848292,3500.4,3499.9,2.269]
[1721592811495,6.77848292,3500.4,3500.1,2.85699]
[1721592811705,6.77848292,3500.4,3500.3,2.85689]
[1721592811884,1.001,3500.8,3500.1,2.85698]
[1721592812207,1.001,3500.8,3500.4,2.8568]
[1721592812369,7.32968292,3501.1,3500.5,0.34280671]
[1721592812370,6.77848292,3501.1,3500.5,0.34280671]
[1721592812571,6.77848292,3501.1,3500.7,2.8565]
[1721592812963,6.77848292,3501.1,3500.8,2.85644]
[1721592813287,6.77848292,3501.1,3500.7,5.71299]
[1721592813463,6.77848292,3501.1,3500.5,0.28568]
[1721592813664,6.77848292,3501.1,3500.8,2.85641]
[1721592813868,6.77848292,3501.1,3500.9,2.8564]
[1721592814215,0.1520447,3501.9,3500.9,5.41099]
[1721592814367,0.5020447,3501.9,3501.0,2.85631]
[1721592814699,0.1520447,3501.9,3501.0,2.85631]
[1721592814872,0.1520447,3501.9,3500.9,2.269]
[1721592815364,0.1520447,3501.9,3501.4,2.85597]
[1721592815718,0.1520447,3501.9,3501.2,2.85614]
[1721592815864,0.1520447,3501.9,3501.0,2.8563]
[1721592816202,0.1520447,3501.9,3500.9,2.85637]
[1721592816666,2.541,3501.8,3500.6,2.85658]
[1721592816868,2.541,3501.8,3500.9,2.85638]
[1721592817602,2.541,3501.4,3500.3,2.85683]
[1721592817807,5.397,3501.4,3500.3,2.85683]
[1721592817963,5.397,3501.4,3500.1,2.85699]
[1721592818167,12.17548292,3501.4,3500.1,2.85699]
[1721592818612,2.541,3501.0,3500.0,5.12611]
[1721592818779,3.0922,3501.0,3499.6,2.85741]
[1721592818979,2.85649,3500.8,3499.7,2.85735]
[1721592819376,3.0922,3501.0,3499.3,2.3412]
[1721592819576,3.0922,3501.0,3499.1,3.015]
[1721592819577,6.77848292,3500.8,3500.0,2.85713]
[1721592819825,6.77848292,3500.8,3500.3,2.85689]
[1721592821665,6.77848292,3500.8,3499.9,2.3412]
[1721592821875,6.77848292,3500.8,3499.9,5.1984]
[1721592822077,6.77848292,3500.8,3500.0,2.85713]
[1721592822311,6.77848292,3500.8,3500.1,2.85702]
[1721592825362,6.77848292,3500.8,3500.1,2.85699]
[1721592825564,6.77848292,3500.8,3500.2,2.85697]
[1721592825770,6.77848292,3500.8,3500.5,2.85666]
[1721592826112,6.77848292,3500.8,3500.3,2.85689]
[1721592826113,6.77848292,3500.8,3500.6,2.85665]
[1721592826578,6.77848292,3500.8,3500.4,2.85678]
[1721592826815,6.77848292,3500.8,3500.6,2.85664]
[1721592826970,6.77848292,3500.8,3500.7,2.85657]
[1721592827171,9.63432292,3501.6,3500.6,2.3412]
[1721592827481,12.63432292,3501.6,3500.6,2.3412]
[1721592827677,12.98432292,3501.6,3500.6,2.3412]
[1721592827908,2.541,3501.3,3500.3,2.85687]
[1721592828203,2.541,3501.3,3500.4,2.85681]
[1721592828406,2.541,3501.3,3500.1,5.19818]
[1721592828407,2.541,3501.3,3500.5,2.85672]
[1721592828611,2.541,3501.3,3500.2,2.85697]
[1721592828777,2.85628,3501.1,3500.1,2.3412]
[1721592829105,2.85633,3501.0,3500.1,2.3412]
[1721592829306,2.541,3500.9,3499.8,5.19849]
[1721592829514,2.541,3500.9,3500.1,2.85699]
[1721592830861,5.39741,3500.9,3499.9,2.85722]
[1721592831114,12.17582292,3501.0,3500.0,2.8571]
[1721592831308,9.31948292,3501.0,3500.1,2.85704]
[1721592831518,9.31948292,3501.0,3499.9,2.85722]
[1721592832168,9.31948292,3501.0,3500.3,2.85688]
[1721592832388,6.77848292,3501.0,3500.4,2.85681]
[1721592832717,6.77848292,3501.0,3500.7,2.85653]
[1721592832885,10.32968292,3501.6,3500.7,2.85653]
[1721592833085,10.12848292,3501.6,3500.7,2.85653]
[1721592833288,10.12848292,3501.6,3500.3,2.912584]
[1721592833289,7.12848292,3501.6,3500.3,2.912584]
[1721592833539,6.77848292,3501.6,3500.9,2.3412]
[1721592834496,6.77848292,3501.6,3501.0,2.8563]
[1721592834806,6.77848292,3501.6,3500.9,2.3412]
[1721592835125,6.77848292,3501.6,3500.9,5.19758]
[1721592836211,6.77848292,3501.6,3501.0,2.85632]
[1721592836425,12.20886013,3501.7,3501.0,2.85632]
[1721592836807,12.20886013,3501.7,3501.0,2.85629]
[1721592837343,12.20886013,3501.7,3501.1,2.85621]
[1721592838530,0.1520447,3501.9,3501.0,2.85631]
[1721592839094,0.1520447,3501.9,3501.3,2.85608]
[1721592839702,0.1520447,3501.9,3501.4,2.85592]
[1721592840039,0.1520447,3501.9,3501.5,5.23691]
[1721592840334,0.1520447,3501.9,3501.5,2.381]
[1721592840692,0.1520447,3501.9,3501.5,5.2369]
[1721592840894,0.1520447,3501.9,3501.3,2.85604]
[1721592841160,0.1520447,3501.9,3501.4,2.85599]
[1721592841621,0.1520447,3501.9,3501.5,2.8559]
[1721592841936,0.1520447,3501.9,3501.2,5.23026]
[1721592841937,0.1520447,3501.9,3501.4,2.85597]
[1721592842237,0.1520447,3501.9,3501.2,5.23026]
[1721592842441,0.1520447,3501.9,3501.2,5.753286]
[1721592843447,0.1520447,3501.9,3501.5,2.85585]
[1721592843741,0.1520447,3501.9,3501.6,2.3741]
[1721592844048,0.1520447,3501.9,3501.8,2.85567]
[1721592847559,0.1520447,3501.9,3501.8,8.08544]
[1721592847849,0.1520447,3501.9,3501.8,8.893984]
[1721592848753,0.1520447,3501.9,3501.8,11.749654]
[1721592848950,0.1520447,3501.9,3501.8,12.299654]
[1721592849161,0.1520447,3501.9,3501.8,9.925554]
[1721592849315,0.1520447,3501.9,3501.8,9.016984]
[1721592850621,0.1520447,3501.9,3501.8,9.566984]
[1721592851652,0.1520447,3501.9,3501.8,9.016984]
[1721592853525,0.1520447,3501.9,3501.8,6.161314]
[1721592855726,0.1520447,3501.9,3501.8,3.305644]
[1721592856075,0.1520447,3501.9,3501.4,2.4971]
[1721592859169,0.1520447,3501.9,3501.5,2.85589]
[1721592859471,0.1520447,3501.9,3501.4,5.35308]
[1721592859829,0.1520447,3501.9,3501.2,3.379156]
[1721592860055,0.1520447,3501.9,3501.3,2.85606]
[1721592860337,0.1520447,3501.9,3501.5,2.85591]
[1721592860735,0.1520447,3501.9,3501.6,2.85576]
[1721592863175,0.1520447,3501.9,3501.5,5.33099]
[1721592863553,0.1520447,3501.9,3501.6,2.8558]
[1721592864372,0.1520447,3501.9,3501.5,2.4751]
[1721592864681,0.1520447,3501.9,3501.4,0.8734266]
[1721592865245,0.1520447,3501.9,3501.4,3.7293866]
[1721592865557,0.1520447,3501.9,3501.4,0.8734266]
[1721592865741,0.1520447,3501.9,3501.2,2.998126]
[1721592865943,0.1520447,3501.9,3501.2,5.854266]
[1721592866252,0.1520447,3501.9,3501.2,0.523026]
[1721592866777,0.1520447,3501.9,3501.3,2.85607]
[1721592867144,0.1520447,3501.9,3501.5,2.85585]
[1721592867361,0.1520447,3501.9,3501.6,3.426962]
[1721592867568,0.1520447,3501.9,3501.7,2.85575]
[1721592871249,0.1520447,3501.9,3501.6,3.427002]
[1721592872088,0.1520447,3501.9,3501.6,0.571192]
[1721592872297,0.1520447,3501.9,3501.6,3.427012]
[1721592872597,0.1520447,3501.9,3501.7,0.5902112]
[1721592874882,0.1520447,3501.9,3501.3,5.29686]
[1721592875395,0.1520447,3501.9,3501.3,2.4408]
[1721592875605,0.1520447,3501.9,3501.3,5.29684]
[1721592875786,0.1520447,3501.9,3501.3,2.4408]
[1721592876151,0.1520447,3501.9,3501.3,5.29686]
[1721592876380,0.1520447,3501.9,3501.4,0.529686]
[1721592876651,0.1520447,3501.9,3501.4,3.385666]
[1721592876854,0.1520447,3501.9,3501.4,0.529686]
[1721592878121,0.1520447,3501.9,3500.5,2.4517]
[1721592878122,2.85625,3501.1,3500.5,2.4517]
[1721592878422,2.541,3501.5,3500.1,2.4517]
[1721592878423,2.541,3500.8,3500.1,2.4517]
[1721592878572,2.541,3500.7,3500.1,2.4517]
[1721592878771,0.5512,3501.2,3500.2,0.05713411]
[1721592879016,0.5512,3501.2,3500.4,2.85681]
[1721592879017,2.541,3501.2,3500.4,2.85681]
[1721592879185,2.541,3501.2,3500.3,0.25088341]
[1721592879839,2.541,3500.8,3500.3,0.25088341]
[1721592884292,2.541,3500.8,3499.6,3.0]
[1721592884293,2.541,3500.4,3499.7,2.4517]
[1721592884519,2.541,3500.4,3499.7,5.30906]
[1721592884898,2.541,3500.4,3499.9,2.85721]
[1721592885301,2.541,3500.4,3499.7,5.30906]
[1721592885515,2.541,3500.4,3499.8,0.530906]
[1721592885730,2.541,3500.4,3499.8,3.388176]
[1721592886097,2.541,3500.4,3499.7,2.4517]
[1721592886437,2.541,3500.0,3499.7,2.4517]
[1721592887609,2.541,3500.4,3499.7,2.4517]
[1721592887826,5.39784,3500.4,3499.7,2.4517]
[1721592888144,2.541,3500.4,3499.7,2.4517]
[1721592888338,6.77848292,3500.7,3499.9,2.85715]
[1721592891253,2.541,3500.4,3499.7,2.4517]
[1721592891422,2.541,3500.0,3499.3,2.3595]
[1721592891623,2.541,3500.0,3499.4,0.521726]
[1721592892553,2.85724,3499.9,3499.3,2.3595]
[1721592892745,2.541,3500.0,3498.9,2.3595]
[1721592892746,2.85731,3499.8,3498.9,2.3595]
[1721592893034,2.541,3500.0,3498.9,5.21754]
[1721592893035,9.31948292,3500.0,3498.9,5.21754]
[1721592893252,9.31948292,3500.0,3499.0,0.807564]
[1721592893815,2.541,3499.6,3498.9,2.3595]
[1721592895348,5.39847,3499.6,3498.9,2.3595]
[1721592896950,2.541,3499.6,3498.9,2.3595]
[1721592897267,6.77848292,3500.0,3498.9,2.3595]
[1721592897268,2.541,3499.2,3498.9,2.3595]
[1721592898767,2.541,3499.6,3498.9,2.3595]
[1721592899742,2.85757,3499.5,3498.9,2.3595]
[1721592899958,2.541,3499.6,3498.9,2.3595]
[1721592901755,5.39854,3499.6,3498.9,2.3595]
[1721592902086,2.541,3499.6,3498.9,2.3595]
[1721592902794,2.541,3499.6,3498.9,5.2175]
[1721592903081,9.31948292,3500.0,3499.1,2.4197]
[1721592903383,19.18848292,3500.4,3499.1,2.4197]
[1721592903600,19.18848292,3500.4,3499.9,2.4197]
[1721592903809,9.31948292,3500.8,3499.9,2.4197]
[1721592904218,9.31948292,3500.8,3499.9,5.27689]
[1721592904383,9.31948292,3500.8,3500.0,2.85713]
[1721592905209,9.31948292,3500.8,3500.0,2.85712]
[1721592905512,9.31948292,3500.8,3500.3,2.85689]
[1721592905513,6.77848292,3500.8,3500.3,2.85689]
[1721592906073,6.77848292,3500.8,3500.4,2.4197]
[1721592906304,6.77848292,3500.8,3499.8,2.85723]
[1721592906305,9.31948292,3500.8,3499.8,2.4197]
[1721592906487,9.31948292,3500.8,3500.1,2.85703]
[1721592906692,9.31948292,3500.8,3500.0,2.85713]
[1721592906899,9.31948292,3500.8,3500.1,2.85705]
[1721592907118,9.31948292,3500.8,3500.1,3.670439]
[1721592907412,9.31948292,3500.8,3500.1,3.670429]
[1721592907705,21.72948292,3501.2,3500.5,2.4197]
[1721592907908,9.31948292,3501.2,3500.5,2.4197]
[1721592908213,6.77848292,3501.2,3500.6,2.85665]
[1721592908388,6.77848292,3501.2,3500.5,3.233048]
[1721592908389,6.77848292,3501.2,3500.5,6.089748]
[1721592908790,6.77848292,3501.2,3500.5,3.233048]
[1721592909513,6.77848292,3501.2,3500.5,5.27641]
[1721592911214,2.541,3501.0,3500.5,2.4197]
[1721592911514,2.541,3501.0,3499.5,2.85752]
[1721592911515,2.541,3500.6,3499.5,2.85752]
[1721592911677,2.541,3500.6,3499.8,2.85729]
[1721592912009,6.77848292,3500.7,3499.8,2.8573]
[1721592912577,6.77848292,3500.7,3500.0,2.85706]
[1721592913215,6.77848292,3500.7,3499.6,2.4197]
[1721592913216,9.63512292,3500.7,3499.6,2.4197]
[1721592913515,9.63512292,3500.7,3499.7,2.85735]
[1721592913692,9.63512292,3500.7,3499.8,0.827705]
[1721592914416,5.39765,3500.6,3499.8,0.827705]
[1721592914729,5.39765,3500.6,3499.6,2.4197]
[1721592914905,2.85677,3500.5,3499.6,2.4197]
[1721592915080,2.541,3500.6,3499.6,2.4197]
[1721592915423,2.541,3500.6,3499.7,2.85735]
[1721592915604,2.541,3500.6,3499.6,2.4197]
[1721592915805,2.541,3500.6,3499.9,2.8572]
[1721592916018,6.77848292,3500.7,3500.1,2.4197]
[1721592916319,6.77848292,3500.7,3500.3,2.85686]
[1721592916520,2.541,3501.0,3500.3,2.85686]
[1721592917174,12.41,3501.1,3500.1,5.27676]
[1721592917485,12.41,3501.1,3500.2,0.527676]
[1721592917687,12.41,3501.1,3500.4,2.8568]
[1721592918213,6.77848292,3501.2,3500.5,2.85671]
[1721592920091,2.85625,3501.1,3500.2,0.527676]
[1721592920317,9.31948292,3501.2,3500.3,2.85687]
[1721592920892,9.31948292,3501.2,3500.1,2.4197]
[1721592921507,9.31948292,3501.2,3500.7,2.85656]
[1721592922181,9.31948292,3501.2,3500.5,2.8567]
[1721592922817,9.31948292,3501.2,3500.1,2.4197]
[1721592922978,9.31948292,3501.2,3500.1,5.27668]
[1721592923323,9.31948292,3501.2,3500.1,2.4197]
[1721592923324,2.85632,3501.0,3500.1,2.4197]
[1721592923481,2.85657,3500.7,3500.1,2.4197]
[1721592923683,2.85681,3500.5,3500.1,2.4197]
[1721592924142,2.85657,3500.7,3500.1,2.4197]
[1721592924422,2.541,3500.8,3500.1,2.4197]
[1721592925211,2.85674,3500.5,3500.1,2.4197]
[1721592925412,5.39749,3500.8,3500.1,2.4197]
[1721592925413,2.85658,3500.7,3500.1,2.4197]
[1721592926003,2.541,3500.8,3500.1,2.4197]
[1721592926550,5.39749,3500.8,3500.1,2.4197]
[1721592927121,2.85658,3500.7,3500.1,2.4197]
[1721592927949,2.85673,3500.5,3500.1,2.4197]
[1721592929019,2.85639,3501.0,3500.1,2.4197]
[1721592929243,0.35,3500.9,3500.2,0.527682]
[1721592929553,3.0,3501.0,3500.2,0.527682]
[1721592929761,3.20636,3501.0,3500.2,0.527682]
[1721592930053,3.20639,3501.0,3500.2,0.527682]
[1721592930278,2.85658,3500.7,3500.1,2.4197]
[1721592930567,2.85671,3500.6,3500.1,2.4197]
[1721592933678,2.541,3500.7,3500.1,2.4197]
[1721592934947,2.85647,3500.9,3500.1,2.4197]
[1721592935142,2.85647,3500.9,3500.5,2.85667]
[1721592935143,0.35,3500.9,3500.5,2.85667]
[1721592935349,6.77848292,3501.2,3500.7,2.3998]
[1721592935784,6.77848292,3501.2,3500.7,5.2563]
[1721592936442,6.77848292,3501.2,3500.9,5.25619]
[1721592936883,19.18848292,3501.8,3501.1,2.85623]
[1721592937087,6.77848292,3501.8,3501.4,2.3998]
[1721592937270,6.77848292,3501.8,3501.5,0.53129939]
[1721592938364,6.77848292,3501.8,3501.4,2.3998]
[1721592938789,6.77848292,3501.8,3501.6,2.85576]
[1721592938976,0.1520447,3501.9,3501.7,2.85574]
[1721592939174,0.1520447,3501.9,3501.8,8.02144]
[1721592940200,0.1520447,3501.9,3501.8,5.16577]
[1721592940366,0.1520447,3501.9,3501.8,5.682347]
[1721592940871,0.1520447,3501.9,3501.8,8.538017]
[1721592941407,0.1520447,3501.9,3501.8,5.682347]
[1721592941711,0.1520447,3501.9,3501.8,8.538017]
[1721592941873,0.1520447,3501.9,3501.8,11.538017]
[1721592942273,0.1520447,3501.9,3501.8,14.549017]
[1721592942473,0.1520447,3501.9,3501.8,15.099017]
[1721592942672,6.77848292,3503.2,3501.8,12.243347]
[1721592942874,6.77848292,3503.2,3502.8,2.388]
[1721592943085,12.41,3503.6,3502.8,2.388]
[1721592944497,12.41,3503.6,3502.9,0.05708889]
[1721592944707,12.41,3503.6,3502.8,2.388]
[1721592944863,15.26422,3503.6,3502.8,2.6268]
[1721592945068,12.41,3503.6,3502.8,2.6268]
[1721592945335,15.06262013,3504.2,3502.8,2.6268]
[1721592945336,0.29879195,3504.7,3503.3,2.388]
[1721592945541,2.85314,3505.0,3503.5,2.85427]
[1721592945694,2.8534,3504.6,3503.5,2.85425]
[1721592945893,2.541,3504.7,3503.6,3.378415]
[1721592945894,5.39431,3504.7,3503.6,3.378415]
[1721592946124,5.39431,3504.7,3503.6,0.524225]